Cogmind - Beta 15 @@@ ROGUE MODE // 2025.10.11 @ 05:55:52 Player: Jordan Result: Self-destructed Performance ------------- Evolutions (1) 500 Regions Visited (2) 400 Robots Destroyed (34) 170 Value Destroyed (457) 457 Prototype IDs (2) 40 Alien Tech Used (0) 0 Bonus (0) 0 TOTAL SCORE: 1567 Bonus ------- None Cogmind --------- Core Integrity 204/400 Matter 65/300 Energy 100/100 System Corruption 0% Temperature Cool (0) Movement Core (50) Location -9/Materials Parts ------- > --- POWER (1) -------- (None) > --- PROPULSION (2) --- (None) > --- UTILITY (4) ------ Improved Terrain Scanner > --- WEAPON (2) ------- (None) > --- INVENTORY (5) ---- Flight Unit Flight Unit Light Assault Rifle Grenade Launcher Peak State ------------ > --- POWER ------------ Ion Engine > --- PROPULSION ------- Light Treads Light Treads > --- UTILITY ---------- Improved Terrain Scanner Seismic Detector > --- WEAPON ----------- EM Pulse Gun EM Pulse Gun > --- INVENTORY -------- Small Storage Unit Mining Laser [Rating: 9] Favorites ----------- Power Ion Engine Engine Ion Engine Propulsion Light Treads Treads Light Treads Flight Unit Flight Unit Utility Seismic Detector Device Seismic Detector Storage Small Storage Unit Protection Light Armor Plating Weapon Mining Laser Energy Gun EM Pulse Gun Ballistic Gun Light Assault Rifle Launcher Grenade Launcher Special Weapon Mining Laser Build | -11 -10 -9 ------- Run | Yrd Mat Mat Slots Evolved 2 | . . 2 Power . | . . . Propulsion . | . . . Utility 2 | . . 2 Weapon . | . . . Parts Attached 21 | 9 12 . Power 5 | 1 4 . Engine 5 | 1 4 . Core . | . . . Reactor . | . . . Propulsion 4 | 2 2 . Treads 2 | 2 . . Leg . | . . . Wheel . | . . . Hover . | . . . Flight 2 | . 2 . Utility 5 | 3 2 . Device 3 | 2 1 . Storage 1 | 1 . . Processor . | . . . Hackware . | . . . Protection 1 | . 1 . Artifact . | . . . Weapon 7 | 3 4 . Energy Gun 2 | 2 . . Energy Cannon . | . . . Ballistic Gun 2 | . 2 . Ballistic Cannon . | . . . Launcher 1 | . 1 . Special Weapon 2 | 1 1 . Impact Weapon . | . . . Slashing Weapon . | . . . Piercing Weapon . | . . . Special Melee Weapon . | . . . Unidentified Prototypes . | . . . Parts Lost 6 | . 4 2 Power 1 | . . 1 Propulsion 1 | . 1 . Utility 2 | . 1 1 Weapon 2 | . 2 . Highest Loss Streak 2 | . 2 2 To Critical Strikes 1 | . 1 . Average Backups 1 | 1 2 1 Power . | . . . Propulsion . | . . . Utility . | . . . Weapon 1 | 1 . 1 Tool/Special . | . . . Unused Backups . | . . . Power . | . . . Propulsion . | . . . Utility . | . . . Weapon . | . . . Tool/Special . | . . . Average Slot Usage (%) 85 | . 89 57 Engine 13 | . 13 9 Treads 13 | . 15 . Flight 12 | . 11 20 Device 19 | . 19 22 Protection 5 | . 6 . Energy Gun 3 | . 4 . Ballistic Gun 1 | . 2 . Launcher 3 | . 3 5 Special Weapon 9 | . 10 . Peak Build Rating 9 | 8 9 8 Average Rating 7 | 7 8 7 On Entrance 5 | . 8 8 Naked Turns . | . . . Heaviest Build 14 | 14 13 8 Greatest Support 40 | 40 40 8 Greatest Overweight (x) 3 | . 3 . Average Overweight (x) . | . . . Largest Inventory Capacity 8 | 8 5 5 Average Capacity 6 | 7 5 5 Most Carried 5 | 3 5 4 Average Carried 1 | 1 2 1 Final Capacity 5 | 5 5 5 Final Carried 4 | 3 1 4 Class Distribution -------------------- 84% | Mutant 15% | Scavenger-Mutant Dominant Class ---------------- Scavenger-Mutant | -10/Materials Mutant | -9/Materials Resources | -11 -10 -9 ----------- Run | Yrd Mat Mat Matter Collected 492 | 300 172 20 Remotely . | . . . Salvage Created 644 | 252 372 20 Parts 74 | 33 40 1 Haulers Intercepted 1 | . 1 . Recyclers Shooed 1 | 1 . . Parts Field Recycled . | . . . Retrieved Matter . | . . . Parts Self-Destructed . | . . . Prevented . | . . . Kills | -11 -10 -9 ------- Run | Yrd Mat Mat Combat Hostiles Destroyed 11 | . 10 1 Melee 1 | . . 1 Guns 4 | . 4 . Cannons 2 | . 2 . AOE 4 | . 4 . Classes Destroyed 8 | 3 5 . Worker 6 | 4 2 . Builder 1 | . 1 . Tunneler 12 | 9 3 . Hauler 1 | . 1 . Recycler 1 | 1 . . Watcher 2 | . 2 . Swarmer 7 | . 6 1 Grunt 4 | . 4 . Best Kill Streak 3 | 2 3 1 Combat Bots Only 3 | . 3 1 Max Kills in Single Turn 3 | 1 3 1 Gunslinging . | . . . Exploded 3 | . 3 . Melee 1 | . . 1 Uniques/NPCs Destroyed . | . . . Combat | -11 -10 -9 -------- Run | Yrd Mat Mat Hostile Shots Fired 110 | . 61 49 Missed 29 | . 14 15 Hits 81 | . 47 34 Projectile 81 | . 47 34 Critical Strikes 1 | . 1 . Damage Taken 913 | . 599 314 Core 229 | . 33 196 Absorbed by Shields . | . . . Regen/Repaired (Parts) 19 | . 19 . Core Remaining (%) 93 | 100 86 . Volleys Fired 131 | 71 60 . Largest 2 | 2 2 . Hottest 200 | 140 200 . Shots Fired 208 | 127 81 . Gun 106 | 72 34 . Cannon . | . . . Launcher 22 | . 22 . Special 80 | 55 25 . Kinetic 6 | . 6 . Thermal 80 | 55 25 . Explosive 22 | . 22 . Electromagnetic 100 | 72 28 . Robot Hit Streak 5 | 4 5 . Robot Miss Streak 6 | 5 6 . Penetration Max . | . . . Secondary Targets . | . . . Shots Hit Robots 64 | 30 34 . Core Hits 43 | 15 23 5 Critical Kills . | . . . Critical Parts Destroyed . | . . . Critical Strikes . | . . . Melee Attacks . | . . . Impact . | . . . Slashing . | . . . Piercing . | . . . Sneak Attacks . | . . . Combat Hostiles . | . . . Follow-up Attacks . | . . . Damage Inflicted 1486 | 481 986 19 Guns 552 | 289 263 . Cannons . | . . . Explosions 507 | . 507 . Melee . | . . . Ramming 19 | . . 19 Kinetic 16 | . 16 . Thermal 547 | 192 355 . Explosive 368 | . 368 . Electromagnetic 536 | 289 247 . Impact . | . . . Slashing . | . . . Piercing . | . . . Highest Corruption 5 | . 5 . Average Corruption 4 | . 4 . Corruption Purged . | . . . Corruption Blocked . | . . . Effects 22 | . 22 . Message Errors 4 | . 4 . Matter Fused 6 | . 6 . Heat Flow Errors 3 | . 3 . Energy Discharges 2 | . 2 . Data Loss (minor) 2 | . 2 . Data Loss (major) 2 | . 2 . Alerts 2 | . 2 . Weapon Failures 1 | . 1 . Overload Shots . | . . . Overflow Damage 26 | 9 17 . Projectiles 25 | 9 16 . Explosions 1 | . 1 . Melee . | . . . Knockbacks . | . . . Impact . | . . . Kinetic . | . . . Secondary . | . . . Self-Inflicted Damage 87 | . 79 8 Shots 3 | . 3 . Rammed 11 | . . 11 Targets Rammed 11 | . . 11 Kicked . | . . . Crushed . | . . . Highest Temperature 355 | 312 355 . Average Temperature 89 | 85 95 . Received Heat Transfer 249 | . 216 33 Effects 4 | 2 2 . Shutdowns 2 | 1 1 . Energy Bleed 1 | 1 . . Interference 1 | . 1 . Siege Activations . | . . . Martial Activations . | . . . Shielding Activations . | . . . Robots Disrupted . | . . . Combat Hostiles . | . . . Robots Corrupted . | . . . Combat Hostiles . | . . . Parts Fried . | . . . Impact Corruptions . | . . . Robots Melted . | . . . Combat Hostiles . | . . . Parts Melted . | . . . Heat Transferred 1000 | 400 600 . Parts Sabotaged . | . . . Parts Stolen . | . . . Parts Stripped . | . . . Power Chain Reactions 3 | . 3 . Alert | -11 -10 -9 ------- Run | Yrd Mat Mat Maximum Alert Level 1 | . 1 . Low Security (%) 95 | 100 80 100 Level 1 4 | . 19 . Level 2 . | . . . Level 3 . | . . . Level 4 . | . . . Level 5 . | . . . High Security . | . . . Max Security . | . . . Peak Influence 291 | 6 291 157 Initial 117 | . . 117 Average 23 | . 89 110 Influence Increases 782 | 70 602 110 Destroy 0b10 Robot/C 220 | . 200 20 Destroy 0b10 Robot/NC 115 | 70 45 . Destroy Leader 46 | . 46 . Successful Hack 9 | . 9 . Disable Machine 135 | . 135 . Destroy Structure 137 | . 137 . Lose Combat Pursuer 120 | . 30 90 Influence Decreases 635 | 70 325 240 Entered New Map 160 | . . 160 Time Decay 435 | 70 305 60 Lost Part 40 | . 20 20 Squads Dispatched 2 | . . 2 Investigation . | . . . Extermination . | . . . Reinforcement 2 | . . 2 Assault . | . . . Garrison . | . . . Intercept . | . . . Searches Triggered . | . . . Construction Impeded . | . . . Haulers Reinforced . | . . . Active Scanning Responses . | . . . Cargo Convoy Interrupts . | . . . Stealth | -11 -10 -9 --------- Run | Yrd Mat Mat Distress Signals 2 | . 2 . Communications Jammed . | . . . Distress Signals . | . . . Times Spotted 34 | . 20 14 Peak Tracking Total 10 | . 4 10 Tactical Retreats 4 | . 2 2 Traps | -11 -10 -9 ------- Run | Yrd Mat Mat Traps Triggered 3 | . 3 . Indirectly . | . . . Trap Hack Attempts . | . . . Triggered . | . . . Disarmed . | . . . Reprogrammed . | . . . Reused . | . . . Traps Extracted . | . . . Installed . | . . . Triggered . | . . . Machines | -11 -10 -9 ---------- Run | Yrd Mat Mat Machines Disabled 9 | . 9 . Max in Single Turn 1 | . 1 . Machines Repaired . | . . . Machines Dismantled . | . . . Machines Sabotaged . | . . . Overloaded Fab Kills . | . . . Hacking | -11 -10 -9 --------- Run | Yrd Mat Mat Machines Accessed 6 | . 6 . Terminals 4 | . 4 . Fabricators . | . . . Repair Stations 1 | . 1 . Recycling Units 1 | . 1 . Scanalyzers . | . . . Garrison Access . | . . . Total Hacks 20 | . 20 . Successful 14 | . 14 . Failed 6 | . 6 . Catastrophic . | . . . Database Lockouts . | . . . Manual . | . . . Terminals 13 | . 13 . Fabricators . | . . . Repair Stations 2 | . 2 . Recycling Units 5 | . 5 . Scanalyzers . | . . . Garrison Access . | . . . Terminal Hacks 7 | . 7 . Record 3 | . 3 . Robot Analysis 3 | . 3 . Prototype ID Bank 1 | . 1 . Fabricator Hacks . | . . . Repair Station Hacks 2 | . 2 . Scan Component 1 | . 1 . Repair 1 | . 1 . Recycling Unit Hacks 5 | . 5 . Recycle Component 1 | . 1 . Process 1 | . 1 . Report Inventory 2 | . 2 . Retrieve Matter 1 | . 1 . Scanalyzer . | . . . Garrison Access Hacks . | . . . Unauthorized Hacks . | . . . Terminals . | . . . Fabricators . | . . . Repair Stations . | . . . Recycling Units . | . . . Scanalyzers . | . . . Garrison Access . | . . . Data Cores Recovered . | . . . Used . | . . . Hacking Detections 6 | . 6 . Full Trace Events . | . . . Feedback Events . | . . . Feedback Blocked . | . . . Robot Schematics Acquired . | . . . Robots Built . | . . . Authchips . | . . . Time . | . . . Total Robot Build Rating . | . . . Part Schematics Acquired . | . . . Parts Built . | . . . Authchips . | . . . Time . | . . . Total Part Build Rating . | . . . Parts Repaired 1 | . 1 . Time 26 | . 26 . Parts Recycled 1 | . 1 . Recycled Matter 4 | . 4 . Retrieved Matter 4 | . 4 . Retrieved Components . | . . . Parts Scanalyzed . | . . . Part Schematics Acquired . | . . . Parts Damaged . | . . . Bothacking | -11 -10 -9 ------------ Run | Yrd Mat Mat Used RIF Installer . | . . . Robots Hacked . | . . . Non-combat . | . . . Combat . | . . . Robot Hacks Applied . | . . . Relay Couplers Released . | . . . Fabnet Peak Effective % . | . . . Robots Rewired . | . . . Allies Hacked . | . . . Hacks Repelled . | . . . Allies | -11 -10 -9 -------- Run | Yrd Mat Mat Total Allies . | . . . Largest Group . | . . . Highest-Rated Group . | . . . Highest-Rated Ally . | . . . Total Orders . | . . . Ally Attacks . | . . . Total Damage . | . . . Kills . | . . . Allies Corrupted . | . . . Allies Melted . | . . . Intel | -11 -10 -9 ------- Run | Yrd Mat Mat Active Infowar (turns) 3855 | 2818 914 123 Terrain 1851 | 814 914 123 Seismic 2856 | 2818 38 . Robot Analysis Total 3 | . 3 . Derelict Logs Recovered . | . . . Drone Launches . | . . . Drone Recoveries . | . . . Exploration | -11 -10 -9 ------------- Run | Yrd Mat Mat Turns Passed 4254 | 3177 946 131 Spaces Moved 2202 | 923 967 312 Core 8 | 4 3 1 Treads 1149 | 919 230 . Legs . | . . . Wheels . | . . . Hover . | . . . Flight 1045 | . 734 311 Fastest Speed 37 | 50 37 37 Average Speed 102 | 159 69 37 Slowest Speed 200 | 160 200 50 Overloaded Moves . | . . . Propulsion Burnouts . | . . . Robots Hopped 20 | . 9 11 Potential Cave-ins 2 | 2 . . Cave-ins Triggered . | . . . Exploration Rate (%) 45 | 42 75 20 Regions Visited 2 Branch Regions . Pre-discovered Areas . | . . . Known Exits Taken . | . . . Unknown Exits Taken 2 | 1 1 . Scrap Searched . | . . . Spaces Dug 31 | 11 20 . Terrain Destroyed 164 | 20 144 . Melee . | . . . Projectile 29 | 20 9 . AOE 135 | . 135 . Terrain Rammed . | . . . Walls Destroyed . | . . . Machines Disabled . | . . . Actions | -11 -10 -9 --------- Run | Yrd Mat Mat Total 3814 | 2388 1109 317 Wait 1425 | 1381 42 2 Move 2160 | 922 948 290 Hop 20 | . 9 11 Pick Up 2 | 1 1 . Fast Attach 19 | 8 11 . Attach 12 | 1 11 . Detach 23 | 3 17 3 Swap 2 | 1 1 . Drop 9 | . 9 . Fire 131 | 71 60 . Melee . | . . . Ram 11 | . . 11 Kick . | . . . Crush . | . . . Escape Stasis . | . . . Rewire . | . . . Trap . | . . . Miscellaneous . | . . . Route ------- -11/Scrapyard -10/Materials (discovered 4 exits: [*Mat x3] / [*Min]) -9/Materials History --------- Turn | Location | Event 2 | -11/Scrapyard | Met Revision 17 7 | -11/Scrapyard | Discovered new exit (range 15) 3178 | -11/Scrapyard | Entered Materials 3179 | -10/Materials | Build established: Mutant 3195 | -10/Materials | Discovered new exit (range 15) 3331 | -10/Materials | Discovered new exit (range 16) 3578 | -10/Materials | Build established: Scavenger-Mutant 3814 | -10/Materials | Discovered new exit (range 3) 3985 | -10/Materials | Discovered new exit (range 15) 4103 | -10/Materials | Repaired Grenade Launcher 4124 | -10/Materials | Entered another Materials area 4124 | -9/Materials | Evolved 2 slots: Utility x2 4255 | -9/Materials | Self-destructed Last Messages --------------- 04167_ O-16 Technician uses terminal to summon reinforcements. 04167_ ALERT: Hostiles spotted, dispatching reinforcements to Terminal M007. 04167_ O-16 Technician locks terminal. 04188_ ALERT: Hostiles spotted, dispatching reinforcements to Terminal M005. 04236_ Lgt. Ion Engine destroyed. 04243_ Slammed into A-02 Transporter. 04243_ Heat Sink broken. 04243_ Destabilizing: Short circuit. 04245_ Slammed into A-02 Transporter. 04247_ Destabilizing: System interference. 04247_ Imp. Terrain Scanner temporarily disabled. 04248_ Slammed into S-10 Pest. 04250_ Broken Heat Sink destroyed. 04251_ Slammed into S-10 Pest. 04251_ Imp. Terrain Scanner broken. 04251_ Destabilizing: Short circuit. 04252_ Slammed into S-10 Pest. 04254_ S-10 Pest destroyed. [Achievement: Fist Fight] 04255_ Acquired 20 matter. Map ----- +----------------------------------------------------+ | ????????????# #?????? | | ????????????################### #?????? | | ????????????????????## # #?????? | | ?????????????????????# """ # #?????? | | ?????????????????????? """"" + #?????? | | ?????????????????#?#?? """"" # #?????? | | ?????????????????????# """"" # #?????? | | ?????????????????????# """ # ####### | | ?????????#???????????# # # | | ??????????????#??????# # # | | ?????????????????#???# # # | | ?????????????????????########## + | | ??????????##################### # | | ??????????# + # | | ?????????## ############ ####### | | ??????????# #?########## # | | ??????????# #?# # # """ | | ??????#???# #?# """ # # """ | | ??????????# #?# """ # # """ | | ??#???????# #?# """ # # | | ??????????# ### / / """ | | ???????#??# a #?# # # """ | | ??????????#####/###### == # #! """ | | ??????????#### Y / == # # | | ?????????##! ##### =! # ####### | | ?????????#! [@#??########### #?????? | | ?????????#! s #????????????# #?????? | | ?????????#! #???#????????# #?????? | | ?????????#! s#?#??????????# #?????? | | ??##?????##! #????????????## ##?????? | | ?????????##### #?????????????# #??#???? | | ??????#??#!! #?????#??##???# #??????? | | ????????##!! #?????????????# #??????? | | ?????????#** #??????????#??# #??????? | | ?????????#** #?????????????# #??????? | | ?????????#// #########?????# #??????? | | ?????????#// # #??#???# ???????? | | ??????######## # """ #??????# ???????? | | ??????# # # "T" ]#??????? ???????? | | ??????# # # #??????? ???????? | | ??????# + / #??????? ???????? | | ??????# # # #??????? ???????? | | ??????# # ########??????? ???????? | | ??????# # ########### ???????? | | ??????######## ???????? | | ?????????????# ???????? | | ?????????????# ???????? | | ?????????????####+######+### ???????? | | ??????????????# #??????????????????? | | ?????????#????# """ #??????????????????? | +----------------------------------------------------+ Best States ------------- Heat Dissipation 38 Energy Generation 10 Energy Capacity 250 Matter Stores 300 Matter Capacity 300 Sight Range 16 Terrain Scan Range 16 Terrain Scan Density 10 Armor Coverage 150 Evasion (%) 62 Recoil Reduction 2 Item Schematics ----------------- None Robot Schematics ------------------ None Fabricated ------------ Nothing Repaired ---------- Grenade Launcher | 68% | -10/Materials Alien Tech Used ----------------- None Achievements -------------- Armchair Analyst Fist Fight Oops Challenges ------------ None Game ------ Seed UtilityInsulatedModule Manual? 0 Play Time 00:34:31 Cumulative 3.7 hours Start 2025.10.11 @ 05:24:03 End 2025.10.11 @ 05:55:52 Sessions 1 Manual Loads 0 Difficulty Rogue Special Mode None Game No. 3 Rogue 3 Adventurer 0 Explorer 0 Win Type - Total 0 Types 0/0/0/0/0/0/0/0/0/0 Lore% 1 Gallery% 4 Achievement% 7 Wizard Run 0 Options --------- Layout 1 ASCII 0 Keyboard 1 Movement Arrows Keybinds 0 Fullscreen 1 Font 32/SmallcapsGlow Map View 130x35 Zoom Use 0% Tactical HUD 1 Map Filters NONE Filters NONE Steam 1 RUN: 7150a7aa-9fc7-4ab5-a797-be2a52efea30